fUSD/lending_fUSD_20241209
["ID","MTS","AMOUNT","RATE_DAILY","PERIOD"]
[344679462,1733717447120,-500.0,9.942e-05,2]
[344679463,1733717447131,-500.0,9.942e-05,2]
[344679464,1733717447140,-500.0,9.942e-05,2]
[344679465,1733717447150,-911.77,9.942e-05,2]
[344679466,1733717447159,-500.0,9.942e-05,2]
[344679467,1733717447169,-500.0,9.942e-05,2]
[344679468,1733717447178,-500.0,9.942e-05,2]
[344679469,1733717447187,-500.0,9.942e-05,2]
[344679470,1733717447196,-500.0,9.942e-05,2]
[344679471,1733717447207,-500.0,9.942e-05,2]
[344679472,1733717447217,-500.0,9.942e-05,2]
[344679473,1733717447226,-500.0,9.942e-05,2]
[344679474,1733717447235,-500.0,9.942e-05,2]
[344679475,1733717447244,-500.0,9.942e-05,2]
[344679476,1733717447253,-500.0,9.942e-05,2]
[344679477,1733717447262,-500.0,9.942e-05,2]
[344679478,1733717447271,-500.0,9.942e-05,2]
[344679479,1733717447280,-500.0,9.942e-05,2]
[344679480,1733717447290,-746.58,9.942e-05,2]
[344679481,1733717447299,-500.0,9.942e-05,2]
[344679482,1733717447307,-500.0,9.942e-05,2]
[344679483,1733717447316,-500.0,9.942e-05,2]
[344679484,1733717447326,-500.0,9.942e-05,2]
[344679485,1733717447335,-528.82,9.942e-05,2]
[344679486,1733717447345,-500.0,9.942e-05,2]
[344679487,1733717447356,-500.0,9.942e-05,2]
[344679488,1733717447365,-500.0,9.942e-05,2]
[344679489,1733717447374,-500.0,9.942e-05,2]
[344679490,1733717447383,-636.34,9.942e-05,2]
[344679491,1733717447393,-649.38,9.942e-05,2]
[344679492,1733717447403,-500.0,9.942e-05,2]
[344679493,1733717447413,-500.0,9.942e-05,2]
[344679494,1733717447423,-500.0,9.942e-05,2]
[344679495,1733717447432,-500.0,9.942e-05,2]
[344679496,1733717447442,-500.0,9.942e-05,2]
[344679497,1733717447451,-500.0,9.942e-05,2]
[344679498,1733717447460,-500.0,9.942e-05,2]
[344679499,1733717447469,-500.0,9.942e-05,2]
[344679500,1733717447479,-500.0,9.942e-05,2]
[344679501,1733717447489,-500.0,9.942e-05,2]
[344679502,1733717447498,-500.0,9.942e-05,2]
[344679503,1733717447508,-500.0,9.942e-05,2]
[344679504,1733717447516,-500.0,9.942e-05,2]
[344679505,1733717447525,-500.0,9.942e-05,2]
[344679506,1733717447535,-346.60333104,9.942e-05,2]
[344679507,1733717447544,-707.68,9.942e-05,2]
[344679508,1733717447553,-500.0,9.942e-05,2]
[344679509,1733717447562,-500.0,9.942e-05,2]
[344679510,1733717447570,-887.66,9.942e-05,2]
[344679511,1733717447580,-788.67,9.942e-05,2]
[344679512,1733717447589,-788.67,9.942e-05,2]
[344679513,1733717447598,-500.0,9.942e-05,2]
[344679514,1733717447607,-500.0,9.942e-05,2]
[344679515,1733717447616,-500.0,9.942e-05,2]
[344679516,1733717447625,-500.0,9.942e-05,2]
[344679517,1733717447635,-500.0,9.942e-05,2]
[344679518,1733717447643,-500.0,9.942e-05,2]
[344679519,1733717447653,-500.0,9.942e-05,2]
[344679520,1733717447662,-283.59640661,9.942e-05,2]
[344679521,1733717447672,-500.0,9.942e-05,2]
[344679522,1733717447682,-500.0,9.942e-05,2]
[344679523,1733717447691,-500.0,9.942e-05,2]
[344679524,1733717447700,-500.0,9.942e-05,2]
[344679525,1733717447711,-500.0,9.942e-05,2]
[344679526,1733717447721,-500.0,9.942e-05,2]
[344679527,1733717447730,-565.34,9.942e-05,2]
[344679528,1733717447739,-500.0,9.942e-05,2]
[344679529,1733717447749,-335.40028492,9.942e-05,2]
[344679530,1733717447758,-2968.09,9.942e-05,2]
[344679531,1733717447768,-500.0,9.942e-05,2]
[344679532,1733717447776,-500.0,9.942e-05,2]
[344679533,1733717447785,-500.0,9.942e-05,2]
[344679534,1733717447794,-500.0,9.942e-05,2]
[344679535,1733717447803,-1108.28,9.942e-05,2]
[344679536,1733717447812,-500.0,9.942e-05,2]
[344679537,1733717447821,-500.0,9.942e-05,2]
[344679538,1733717447830,-500.0,9.942e-05,2]
[344679539,1733717447839,-500.0,9.942e-05,2]
[344679540,1733717447848,-500.0,9.942e-05,2]
[344679541,1733717447857,-500.0,9.942e-05,2]
[344679542,1733717447866,-500.0,9.942e-05,2]
[344679543,1733717447874,-500.0,9.942e-05,2]
[344679544,1733717447882,-366.65,9.942e-05,2]
[344679545,1733717447891,-992.11,9.942e-05,2]
[344679546,1733717447900,-500.0,9.942e-05,2]
[344679547,1733717447909,-6139.29,9.942e-05,2]
[344679548,1733717447919,-500.0,9.942e-05,2]
[344679549,1733717447931,-500.0,9.942e-05,2]
[344679550,1733717447942,-500.0,9.942e-05,2]
[344679551,1733717447951,-964.67,9.942e-05,2]
[344679552,1733717447961,-2915.52,9.942e-05,2]
[344679553,1733717447969,-2915.52,9.942e-05,2]
[344679554,1733717447978,-500.0,9.942e-05,2]
[344679555,1733717447987,-238.95015093,9.942e-05,2]
[344679556,1733717447996,-500.0,9.942e-05,2]
[344679557,1733717448005,-500.0,9.942e-05,2]
[344679558,1733717448019,-500.0,9.942e-05,2]
[344679559,1733717448028,-500.0,9.942e-05,2]
[344679560,1733717448038,-500.0,9.942e-05,2]
[344679561,1733717448048,-662.95,9.942e-05,2]
[344679562,1733717448058,-662.95,9.942e-05,2]
[344679563,1733717448067,-1024.25,9.942e-05,2]
[344679564,1733717448076,-500.0,9.942e-05,2]
[344679565,1733717448086,-500.0,9.942e-05,2]
[344679566,1733717448096,-500.0,9.942e-05,2]
[344679567,1733717448106,-500.0,9.942e-05,2]
[344679568,1733717448115,-500.0,9.942e-05,2]
[344679569,1733717448124,-500.0,9.942e-05,2]
[344679570,1733717448134,-798.38,9.942e-05,2]
[344679571,1733717448143,-500.0,9.942e-05,2]
[344679572,1733717448152,-500.0,9.942e-05,2]
[344679573,1733717448162,-500.0,9.942e-05,2]
[344679574,1733717448173,-500.0,9.942e-05,2]
[344679575,1733717448183,-1572.3,9.942e-05,2]
[344679576,1733717448192,-500.0,9.942e-05,2]
[344679577,1733717448201,-500.0,9.942e-05,2]
[344679578,1733717448211,-500.0,9.942e-05,2]
[344679579,1733717448221,-500.0,9.942e-05,2]
[344679580,1733717448230,-500.0,9.942e-05,2]
[344679581,1733717448240,-500.0,9.942e-05,2]
[344679582,1733717448249,-500.0,9.942e-05,2]
[344679583,1733717448258,-500.0,9.942e-05,2]
[344679584,1733717448268,-554.46,9.942e-05,2]
[344679585,1733717448439,-500.0,9.942e-05,2]
[344679586,1733717448452,-500.0,9.942e-05,2]
[344679587,1733717448462,-526.02,9.942e-05,2]
[344679588,1733717448472,-500.0,9.942e-05,2]
[344679589,1733717448483,-500.0,9.942e-05,2]
[344679590,1733717448493,-500.0,9.942e-05,2]
[344679591,1733717448502,-500.0,9.942e-05,2]
[344679592,1733717448512,-724.83,9.942e-05,2]
[344679593,1733717448522,-500.0,9.942e-05,2]
[344679594,1733717448531,-500.0,9.942e-05,2]
[344679595,1733717448541,-580.52,9.942e-05,2]
[344679596,1733717448550,-1823.26,9.942e-05,2]
[344679597,1733717448560,-500.0,9.942e-05,2]
[344679598,1733717448569,-512.79227267,9.942e-05,2]
[344679599,1733717448579,-500.0,9.942e-05,2]
[344679600,1733717448588,-500.0,9.942e-05,2]
[344679601,1733717448597,-736.37,9.942e-05,2]
[344679602,1733717448607,-500.0,9.942e-05,2]
[344679603,1733717448616,-500.0,9.942e-05,2]
[344679604,1733717448625,-500.0,9.942e-05,2]
[344679605,1733717448635,-500.0,9.942e-05,2]
[344679606,1733717448644,-500.0,9.942e-05,2]
[344679607,1733717448653,-659.59,9.942e-05,2]
[344679608,1733717448663,-165.8322395,9.942e-05,2]
[344679609,1733717448673,-500.0,9.942e-05,2]
[344679610,1733717448682,-500.0,9.942e-05,2]
[344679611,1733717448692,-510.59200575,9.942e-05,2]
[344679612,1733717448702,-581.75,9.942e-05,2]
[344679613,1733717448712,-500.0,9.942e-05,2]
[344679614,1733717448722,-7344.14,9.942e-05,2]
[344679615,1733717448731,-500.0,9.942e-05,2]
[344679616,1733717448740,-500.0,9.942e-05,2]
[344679617,1733717448750,-198.42,9.942e-05,2]
[344679618,1733717448760,-500.0,9.942e-05,2]
[344679619,1733717448769,-500.0,9.942e-05,2]
[344679620,1733717448778,-500.0,9.942e-05,2]
[344679621,1733717448788,-500.0,9.942e-05,2]
[344679622,1733717448798,-500.0,9.942e-05,2]
[344679623,1733717448807,-411.58878583,9.942e-05,2]
[344679624,1733717448817,-500.0,9.942e-05,2]
[344679625,1733717448827,-1000.28,9.942e-05,2]
[344679626,1733717448836,-1000.28,9.942e-05,2]
[344679627,1733717448845,-500.0,9.942e-05,2]
[344679628,1733717448854,-500.0,9.942e-05,2]
[344679629,1733717448863,-224.43055051,9.942e-05,2]
[344679630,1733717448873,-610.21,9.942e-05,2]
[344679631,1733717448883,-500.0,9.942e-05,2]
[344679632,1733717448892,-500.0,9.942e-05,2]
[344679633,1733717448902,-500.0,9.942e-05,2]
[344679634,1733717448911,-1061.69,9.942e-05,2]
[344679635,1733717448921,-500.0,9.942e-05,2]
[344679636,1733717448931,-500.0,9.942e-05,2]
[344679637,1733717448940,-500.0,9.942e-05,2]
[344679638,1733717448950,-599.44,9.942e-05,2]
[344679639,1733717448960,-4545.68,9.942e-05,2]
[344679640,1733717448970,-4545.68,9.942e-05,2]
[344679641,1733717448980,-500.0,9.942e-05,2]
[344679642,1733717448990,-500.0,9.942e-05,2]
[344679643,1733717449000,-500.0,9.942e-05,2]
[344679644,1733717449010,-500.0,9.942e-05,2]
[344679645,1733717449023,-500.0,9.942e-05,2]
[344679646,1733717449032,-500.0,9.942e-05,2]
[344679647,1733717449042,-500.0,9.942e-05,2]
[344679648,1733717449052,-500.0,9.942e-05,2]
[344679649,1733717449062,-500.0,9.942e-05,2]
[344679650,1733717449072,-500.0,9.942e-05,2]
[344679651,1733717449082,-500.0,9.942e-05,2]
[344679652,1733717449091,-500.0,9.942e-05,2]
[344679653,1733717449101,-500.0,9.942e-05,2]
[344679654,1733717449112,-500.0,9.942e-05,2]
[344679655,1733717449121,-500.0,9.942e-05,2]
[344679656,1733717449131,-515.56,9.942e-05,2]
[344679657,1733717449141,-515.56,9.942e-05,2]
[344679658,1733717449151,-877.57,9.942e-05,2]
[344679659,1733717449162,-500.0,9.942e-05,2]
[344679660,1733717449173,-500.0,9.942e-05,2]
[344679661,1733717449183,-824.66,9.942e-05,2]
[344679662,1733717449193,-824.66,9.942e-05,2]
[344679663,1733717449203,-500.0,9.942e-05,2]
[344679664,1733717449213,-570.4,9.942e-05,2]
[344679665,1733717449223,-500.0,9.942e-05,2]
[344679666,1733717449233,-520.33357926,9.942e-05,2]
[344679667,1733717449243,-500.0,9.943e-05,2]
[344679668,1733717449253,-500.0,9.943e-05,2]
[344679669,1733717449262,-500.0,9.943e-05,2]
[344679670,1733717449271,-500.0,9.943e-05,2]
[344679671,1733717449282,-500.0,9.943e-05,2]
[344679672,1733717449291,-1153.75,9.943e-05,2]
[344679673,1733717449302,-661.53,9.943e-05,2]
[344679674,1733717449311,-500.0,9.943e-05,2]
[344679675,1733717449321,-687.32,9.943e-05,2]
[344679676,1733717449331,-500.0,9.943e-05,2]
[344679677,1733717449340,-504.9404756,9.943e-05,2]
[344679678,1733717449350,-526.0,9.943e-05,2]
[344679679,1733717449360,-558.54,9.943e-05,2]
[344679680,1733717449369,-500.0,9.943e-05,2]
[344679681,1733717449379,-669.55,9.943e-05,2]
[344679682,1733717449389,-500.0,9.943e-05,2]
[344679683,1733717449403,-500.0,9.943e-05,2]
[344679684,1733717449413,-1146.39,9.943e-05,2]
[344679685,1733717449424,-500.0,9.943e-05,2]
[344679686,1733717449433,-500.0,9.943e-05,2]
[344679687,1733717449443,-698.87,9.943e-05,2]
[344679688,1733717449453,-500.0,9.943e-05,2]
[344679689,1733717449463,-500.0,9.943e-05,2]
[344679690,1733717449473,-500.0,9.943e-05,2]
[344679691,1733717449483,-500.0,9.943e-05,2]
[344679692,1733717449494,-1268.29,9.943e-05,2]
[344679693,1733717449504,-500.0,9.943e-05,2]
[344679694,1733717449514,-782.54,9.943e-05,2]
[344679695,1733717449524,-917.6,9.943e-05,2]
[344679696,1733717449534,-500.0,9.943e-05,2]
[344679697,1733717449544,-500.0,9.943e-05,2]
[344679698,1733717449555,-500.0,9.943e-05,2]
[344679699,1733717449565,-1486.37,9.943e-05,2]
[344679700,1733717449574,-500.0,9.943e-05,2]
[344679701,1733717449584,-2892.49,9.943e-05,2]
[344679702,1733717449594,-500.0,9.943e-05,2]
[344679703,1733717449604,-500.0,9.943e-05,2]
[344679704,1733717449614,-500.0,9.943e-05,2]
[344679705,1733717449624,-500.0,9.943e-05,2]
[344679706,1733717449634,-500.0,9.943e-05,2]
[344679707,1733717449643,-500.0,9.943e-05,2]
[344679708,1733717449654,-940.72,9.943e-05,2]
[344679709,1733717449664,-500.0,9.943e-05,2]
[344679710,1733717449676,-500.0,9.943e-05,2]
[344679711,1733717449687,-500.0,9.943e-05,2]
[344679712,1733717449696,-500.0,9.943e-05,2]
[344679713,1733717449707,-856.72,9.943e-05,2]
[344679714,1733717449717,-636.1,9.943e-05,2]
[344679715,1733717449727,-500.0,9.943e-05,2]
[344679716,1733717449737,-2225.32,9.943e-05,2]
[344679717,1733717449747,-500.0,9.943e-05,2]
[344679718,1733717449757,-500.0,9.943e-05,2]
[344679719,1733717449767,-548.61,9.943e-05,2]
[344679720,1733717449777,-500.0,9.943e-05,2]
[344679721,1733717449787,-956.5,9.943e-05,2]
[344679722,1733717449797,-500.0,9.943e-05,2]
[344679723,1733717449806,-603.18,9.943e-05,2]
[344679724,1733717449816,-500.0,9.943e-05,2]
[344679725,1733717449827,-500.0,9.943e-05,2]
[344679726,1733717449836,-1535.43,9.943e-05,2]
[344679727,1733717449846,-500.0,9.943e-05,2]
[344679728,1733717449856,-500.0,9.943e-05,2]
[344679729,1733717449866,-529.43,9.943e-05,2]
[344679730,1733717449875,-500.0,9.943e-05,2]
[344679731,1733717449885,-500.0,9.943e-05,2]
[344679732,1733717449895,-500.0,9.943e-05,2]
[344679733,1733717449904,-584.94,9.943e-05,2]
[344679734,1733717449915,-517.39,9.943e-05,2]
[344679735,1733717449926,-500.0,9.943e-05,2]
[344679736,1733717449936,-607.68,9.943e-05,2]
[344679737,1733717449946,-500.0,9.943e-05,2]
[344679738,1733717449956,-643.13,9.943e-05,2]
[344679739,1733717449965,-500.0,9.943e-05,2]
[344679740,1733717449974,-721.97,9.943e-05,2]
[344679741,1733717449984,-858.31,9.943e-05,2]
[344679742,1733717449993,-512.81,9.943e-05,2]
[344679743,1733717450003,-500.0,9.943e-05,2]
[344679744,1733717450014,-1760.72,9.943e-05,2]
[344679745,1733717450024,-535.3,9.943e-05,2]
[344679746,1733717450034,-500.0,9.943e-05,2]
[344679747,1733717450044,-1695.34,9.943e-05,2]
[344679748,1733717450053,-500.0,9.943e-05,2]
[344679749,1733717450066,-500.0,9.943e-05,2]
[344679750,1733717450075,-197.98390967,9.943e-05,2]
[344679751,1733717450086,-524.79,9.943e-05,2]
[344679752,1733717450096,-783.21,9.943e-05,2]
[344679753,1733717450106,-500.0,9.943e-05,2]
[344679754,1733717450115,-500.0,9.943e-05,2]
[344679755,1733717450125,-500.0,9.943e-05,2]
[344679756,1733717450135,-500.0,9.943e-05,2]
[344679757,1733717450144,-500.0,9.943e-05,2]
[344679758,1733717450155,-500.0,9.943e-05,2]
[344679759,1733717450164,-500.0,9.943e-05,2]
[344679760,1733717450174,-500.0,9.943e-05,2]
[344679761,1733717450185,-500.0,9.943e-05,2]
[344679762,1733717450194,-698.88,9.943e-05,2]
[344679763,1733717450204,-500.0,9.943e-05,2]
[344679764,1733717450214,-500.0,9.943e-05,2]
[344679765,1733717450224,-532.15,9.943e-05,2]
[344679766,1733717450234,-500.0,9.943e-05,2]
[344679767,1733717450244,-500.0,9.943e-05,2]
[344679768,1733717450254,-500.0,9.943e-05,2]
[344679769,1733717450263,-500.0,9.943e-05,2]
[344679770,1733717450273,-971.66,9.943e-05,2]
[344679771,1733717450283,-500.0,9.943e-05,2]
[344679772,1733717450293,-1123.01,9.943e-05,2]
[344679773,1733717450302,-500.0,9.943e-05,2]
[344679774,1733717450313,-500.0,9.943e-05,2]
[344679775,1733717450322,-500.0,9.943e-05,2]
[344679776,1733717450332,-500.0,9.943e-05,2]
[344679777,1733717450341,-500.0,9.943e-05,2]
[344679778,1733717450352,-501.54,9.943e-05,2]
[344679779,1733717450362,-500.0,9.943e-05,2]
[344679780,1733717450371,-697.22,9.943e-05,2]
[344679781,1733717450380,-500.0,9.943e-05,2]
[344679782,1733717450394,-500.0,9.943e-05,2]
[344679783,1733717450403,-1117.34,9.943e-05,2]
[344679784,1733717450413,-500.0,9.943e-05,2]
[344679785,1733717450425,-500.0,9.943e-05,2]
[344679786,1733717450434,-500.0,9.943e-05,2]
[344679787,1733717450444,-500.0,9.943e-05,2]
[344679788,1733717450455,-785.56,9.943e-05,2]
[344679789,1733717450464,-500.0,9.943e-05,2]
[344679790,1733717450474,-500.0,9.943e-05,2]
[344679791,1733717450484,-761.89,9.943e-05,2]
[344679792,1733717450494,-500.0,9.943e-05,2]
[344679793,1733717450504,-500.0,9.943e-05,2]
[344679794,1733717450514,-500.0,9.943e-05,2]
[344679795,1733717450525,-561.36,9.943e-05,2]
[344679796,1733717450534,-500.0,9.943e-05,2]
[344679797,1733717450544,-515.98,9.943e-05,2]
[344679798,1733717450554,-956.91,9.943e-05,2]
[344679799,1733717450564,-500.0,9.943e-05,2]
[344679800,1733717450573,-649.12,9.943e-05,2]
[344679801,1733717450583,-519.78,9.943e-05,2]
[344679802,1733717450593,-500.0,9.943e-05,2]
[344679803,1733717450603,-500.0,9.943e-05,2]
[344679804,1733717450612,-500.0,9.943e-05,2]
[344679805,1733717450622,-500.0,9.943e-05,2]
[344679806,1733717450631,-758.5,9.943e-05,2]
[344679807,1733717450641,-1022.79,9.943e-05,2]
[344679808,1733717450651,-775.53,9.943e-05,2]
[344679809,1733717450661,-500.0,9.943e-05,2]
[344679810,1733717450671,-644.35,9.943e-05,2]
[344679811,1733717450680,-500.0,9.943e-05,2]
[344679812,1733717450690,-1432.34,9.943e-05,2]
[344679813,1733717450700,-500.0,9.943e-05,2]
[344679814,1733717450710,-500.0,9.943e-05,2]
[344679815,1733717450720,-500.0,9.943e-05,2]
[344679816,1733717450730,-500.0,9.943e-05,2]
[344679817,1733717450739,-239.86,9.943e-05,2]
[344679818,1733717450749,-626.7,9.943e-05,2]
[344679819,1733717450759,-500.0,9.943e-05,2]
[344679820,1733717450769,-500.0,9.943e-05,2]
[344679821,1733717450778,-424.69299111,9.943e-05,2]
[344679822,1733717450789,-701.17,9.943e-05,2]
[344679823,1733717450799,-500.0,9.943e-05,2]
[344679824,1733717450809,-500.0,9.943e-05,2]
[344679825,1733717450819,-500.0,9.943e-05,2]
[344679826,1733717450830,-717.6,9.943e-05,2]
[344679827,1733717450840,-1398.67,9.943e-05,2]
[344679828,1733717450849,-500.0,9.943e-05,2]
[344679829,1733717450860,-500.0,9.943e-05,2]
[344679830,1733717450869,-500.0,9.943e-05,2]
[344679831,1733717450878,-730.58,9.943e-05,2]
[344679832,1733717450888,-500.0,9.943e-05,2]
[344679833,1733717450898,-500.0,9.943e-05,2]
[344679834,1733717450908,-500.0,9.943e-05,2]
[344679835,1733717450918,-500.0,9.943e-05,2]
[344679836,1733717450929,-500.0,9.943e-05,2]
[344679837,1733717450938,-531.8,9.943e-05,2]
[344679838,1733717450948,-562.81,9.943e-05,2]
[344679839,1733717450958,-500.0,9.943e-05,2]
[344679840,1733717450967,-500.0,9.943e-05,2]
[344679841,1733717451328,-500.0,9.943e-05,2]
[344679842,1733717451338,-500.34164752,9.943e-05,2]
[344679843,1733717451347,-500.0,9.943e-05,2]
[344679844,1733717451356,-500.0,9.943e-05,2]
[344679845,1733717451366,-627.69,9.943e-05,2]
[344679846,1733717451375,-604.87,9.943e-05,2]
[344679847,1733717451385,-519.5,9.943e-05,2]
[344679848,1733717451394,-575.57,9.943e-05,2]
[344679849,1733717451404,-500.0,9.943e-05,2]
[344679850,1733717451414,-500.0,9.943e-05,2]
[344679851,1733717451426,-500.0,9.943e-05,2]
[344679852,1733717451435,-572.14,9.943e-05,2]
[344679853,1733717451445,-500.0,9.943e-05,2]
[344679854,1733717451455,-547.55,9.943e-05,2]
[344679855,1733717451465,-500.0,9.943e-05,2]
[344679856,1733717451475,-540.27,9.943e-05,2]
[344679857,1733717451485,-543.18,9.943e-05,2]
[344679858,1733717451495,-500.0,9.943e-05,2]
[344679859,1733717451505,-500.0,9.943e-05,2]
[344679860,1733717451514,-500.0,9.943e-05,2]
[344679861,1733717451524,-500.0,9.943e-05,2]
[344679862,1733717451534,-500.0,9.943e-05,2]
[344679863,1733717451543,-814.77,9.943e-05,2]
[344679864,1733717451553,-502.77444288,9.943e-05,2]
[344679865,1733717451562,-500.0,9.943e-05,2]
[344679866,1733717451572,-624.55,9.943e-05,2]
[344679867,1733717451581,-500.0,9.943e-05,2]
[344679868,1733717451590,-362.26,9.943e-05,2]
[344679869,1733717451600,-500.0,9.943e-05,2]
[344679870,1733717451609,-782.21,9.943e-05,2]
[344679871,1733717451619,-840.23,9.943e-05,2]
[344679872,1733717451629,-500.0,9.943e-05,2]
[344679873,1733717451640,-500.0,9.943e-05,2]
[344679874,1733717451649,-552.08,9.943e-05,2]
[344679875,1733717451659,-658.45,9.943e-05,2]
[344679876,1733717451669,-500.0,9.943e-05,2]
[344679877,1733717451686,-533.65,9.943e-05,2]
[344679878,1733717451696,-2775.61,9.943e-05,2]
[344679879,1733717451706,-500.0,9.943e-05,2]
[344679880,1733717451716,-500.0,9.943e-05,2]
[344679881,1733717451725,-500.0,9.943e-05,2]
[344679882,1733717451735,-500.0,9.943e-05,2]
[344679883,1733717451744,-500.0,9.943e-05,2]
[344679884,1733717451754,-607.77,9.943e-05,2]
[344679885,1733717451763,-536.64,9.943e-05,2]
[344679886,1733717451773,-500.0,9.943e-05,2]
[344679887,1733717451783,-4299.98,9.943e-05,2]
[344679888,1733717451792,-500.0,9.943e-05,2]
[344679889,1733717451802,-500.0,9.943e-05,2]
[344679890,1733717451811,-500.0,9.943e-05,2]
[344679891,1733717451821,-755.06,9.943e-05,2]
[344679892,1733717451830,-500.0,9.943e-05,2]
[344679893,1733717451840,-3531.24,9.943e-05,2]
[344679894,1733717451850,-500.0,9.943e-05,2]
[344679895,1733717451860,-500.0,9.943e-05,2]
[344679896,1733717451869,-3447.59,9.943e-05,2]
[344679897,1733717451878,-500.0,9.943e-05,2]
[344679898,1733717451888,-1120.44,9.943e-05,2]
[344679899,1733717451898,-677.52,9.943e-05,2]
[344679900,1733717451909,-500.0,9.943e-05,2]
[344679901,1733717451918,-500.0,9.943e-05,2]
[344679902,1733717451930,-500.0,9.943e-05,2]
[344679903,1733717451939,-500.0,9.943e-05,2]
[344679904,1733717451949,-500.0,9.943e-05,2]
[344679905,1733717451959,-500.0,9.943e-05,2]
[344679906,1733717451968,-500.0,9.943e-05,2]
[344679907,1733717451978,-500.0,9.943e-05,2]
[344679908,1733717451988,-7430.35,9.943e-05,2]
[344679909,1733717451999,-500.0,9.943e-05,2]
[344679910,1733717452010,-500.0,9.943e-05,2]
[344679911,1733717452024,-500.0,9.943e-05,2]
[344679912,1733717452035,-500.0,9.943e-05,2]
[344679913,1733717452044,-500.0,9.943e-05,2]
[344679914,1733717452054,-500.0,9.943e-05,2]
[344679915,1733717452065,-645.19,9.943e-05,2]
[344679916,1733717452074,-500.0,9.943e-05,2]
[344679917,1733717452086,-500.0,9.943e-05,2]
[344679918,1733717452097,-1717.14,9.943e-05,2]
[344679919,1733717452107,-7546.53,9.943e-05,2]
[344679920,1733717452116,-500.0,9.943e-05,2]
[344679921,1733717452125,-500.0,9.943e-05,2]
[344679922,1733717452134,-500.0,9.943e-05,2]
[344679923,1733717452143,-500.0,9.943e-05,2]
[344679924,1733717452152,-2343.17,9.943e-05,2]
[344679925,1733717452162,-500.0,9.943e-05,2]
[344679926,1733717452172,-1870.74,9.943e-05,2]
[344679927,1733717452182,-925.68,9.943e-05,2]
[344679928,1733717452191,-913.04,9.943e-05,2]
[344679929,1733717452200,-3472.36,9.943e-05,2]
[344679930,1733717452211,-500.0,9.943e-05,2]
[344679931,1733717452220,-3398.03,9.943e-05,2]
[344679932,1733717452229,-500.0,9.943e-05,2]
[344679933,1733717452239,-500.0,9.943e-05,2]
[344679934,1733717452249,-500.0,9.943e-05,2]
[344679935,1733717452258,-512.91,9.943e-05,2]
[344679936,1733717452267,-500.0,9.943e-05,2]
[344679937,1733717452277,-655.41,9.943e-05,2]
[344679938,1733717452287,-789.97,9.943e-05,2]
[344679939,1733717452296,-500.0,9.943e-05,2]
[344679940,1733717452305,-219.88,9.943e-05,2]
[344679941,1733717452314,-795.6,9.943e-05,2]
[344679942,1733717452324,-680.47,9.943e-05,2]
[344679943,1733717452333,-500.0,9.943e-05,2]
[344679944,1733717452343,-2180.08,9.943e-05,2]
[344679945,1733717452352,-500.0,9.943e-05,2]
[344679946,1733717452361,-500.0,9.943e-05,2]
[344679947,1733717452370,-500.0,9.943e-05,2]
[344679948,1733717452379,-1610.02,9.943e-05,2]
[344679949,1733717452389,-500.0,9.943e-05,2]
[344679950,1733717452398,-500.0,9.943e-05,2]
[344679951,1733717452407,-20482.2,9.943e-05,2]
[344679952,1733717452416,-500.0,9.943e-05,2]
[344679953,1733717452426,-1569.68,9.943e-05,2]
[344679954,1733717452436,-500.0,9.943e-05,2]
[344679955,1733717452445,-500.0,9.943e-05,2]
[344679956,1733717452454,-1690.59,9.943e-05,2]
[344679957,1733717452464,-500.0,9.943e-05,2]
[344679958,1733717452474,-500.0,9.943e-05,2]
[344679959,1733717452483,-500.0,9.943e-05,2]
[344679960,1733717452493,-500.0,9.943e-05,2]
[344679961,1733717452503,-500.0,9.943e-05,2]